fUST/lending_fUST_20241106
["ID","MTS","AMOUNT","RATE_DAILY","PERIOD"]
[341420146,1730871039942,-501.4711944,0.00024464,2]
[341420147,1730871039951,-500.0,0.00024464,2]
[341420148,1730871039959,-501.43262596,0.00024464,2]
[341420149,1730871039968,-596.15270963,0.00024464,2]
[341420150,1730871039977,-500.0,0.00024464,2]
[341420151,1730871039986,-168.4629546,0.00024464,2]
[341420152,1730871039996,-380.0,0.00024658,2]
[341420153,1730871040007,-500.0,0.00024658,2]
[341420154,1730871040017,-413.8149306,0.00024658,2]
[341420155,1730871040032,-2635.1,0.00024871,3]
[341420156,1730871040044,-1317.54,0.00024871,3]
[341420157,1730871040053,-658.78,0.00024871,3]
[341420158,1730871040062,-329.38,0.00024871,3]
[341420159,1730871040071,-502.28260143,0.00025229,2]
[341420160,1730871040083,-500.0,0.00025229,2]
[341420161,1730871040093,-500.0,0.00025229,2]
[341420163,1730871040104,-500.0,0.00025229,2]
[341420164,1730871040114,-500.0,0.00025229,2]
[341420165,1730871040123,-502.07634981,0.00025229,2]
[341420166,1730871040134,-557.17522074,0.00025533,2]
[341420167,1730871040144,-500.59757276,0.00025783,2]
[341420168,1730871040153,-500.0,0.00025783,2]
[341420169,1730871040162,-384.4792123,0.00025783,2]
[341420170,1730871040171,-365.69128985,0.0002583,2]
[341420172,1730871040181,-1002.77235345,0.0002583,2]
[341420175,1730871040191,-1000.0,0.00025833,2]
[341420177,1730871040203,-1010.35540102,0.00025833,2]
[341420179,1730871040212,-500.0,0.00025833,2]
[341420181,1730871040222,-756.99169927,0.00025833,2]
[341420183,1730871040231,-1000.0,0.00025833,2]
[341420185,1730871040240,-1007.15723942,0.00025833,2]
[341420187,1730871040250,-1000.0,0.00025833,2]
[341420189,1730871040259,-1000.0,0.00025833,2]
[341420191,1730871040270,-5107.98646341,0.00026053,2]
[341420193,1730871040281,-587.0,0.00026487,2]
[341420194,1730871040290,-505.04880581,0.00026598,2]
[341420197,1730871040300,-162.0,0.00027,2]
[341420198,1730871040309,-985.62122385,0.00027153,2]
[341420200,1730871040319,-590.32058059,0.00027297,2]
[341420202,1730871040328,-530.51760798,0.0002737,4]
[341420204,1730871040338,-600.0,0.00027396,2]
[341420206,1730871040348,-500.0,0.00027397,2]
[341420208,1730871040358,-500.0,0.00027397,2]
[341420210,1730871040368,-500.0,0.00027397,2]
[341420212,1730871040377,-500.0,0.00027397,2]
[341420214,1730871040489,-500.0,0.00027397,2]
[341420215,1730871040499,-500.0,0.00027397,2]
[341420216,1730871040508,-450.0,0.00027397,2]
[341420217,1730871040518,-500.0,0.00027397,2]
[341420218,1730871040528,-500.0,0.00027397,2]
[341420219,1730871040537,-500.0,0.00027397,2]
[341420220,1730871040546,-598.64442368,0.00028338,5]
[341420221,1730871040555,-1500.0,0.00028338,5]
[341420222,1730871040565,-1033.80523467,0.00028338,2]
[341420223,1730871040574,-1500.0,0.00028338,5]
[341420224,1730871040583,-590.32058058,0.00028416,2]
[341420225,1730871040592,-172.548,0.00028421,19]
[341420226,1730871040601,-5107.98646341,0.00028694,2]
[341420227,1730871040611,-162.0,0.00028767,2]
[341420228,1730871040621,-823.0,0.00028769,2]
[341420229,1730871040630,-150.112233,0.000291,16]
[341420230,1730871040641,-590.32058058,0.00029535,2]
[341420231,1730871040650,-150.112233,0.000296,19]
[341420232,1730871040659,-151.0,0.0003,120]
[341420233,1730871040668,-151.0,0.0003,120]
[341420234,1730871040678,-184.989,0.0003,2]
[341420235,1730871040687,-518.96007611,0.0003,2]
[341420236,1730871040696,-184.989,0.00030001,2]
[341420237,1730871040706,-150.112233,0.000301,13]
[341420238,1730871040715,-600.0,0.00030136,4]
[341420239,1730871040724,-557.30239324,0.00030137,2]
[341420240,1730871040733,-150.112233,0.000305,20]
[341420241,1730871040743,-590.32058058,0.00030654,2]
[341420242,1730871040751,-200.0,0.000309,120]
[341420243,1730871040761,-150.112233,0.00031,18]
[341420244,1730871040770,-607.0,0.00031248,2]
[341420245,1730871040781,-5107.98646341,0.00031335,2]
[341420246,1730871040790,-150.112233,0.000314,10]
[341420247,1730871040799,-21209.94352742,0.00031581,2]
[341420248,1730871040808,-2000.0,0.00031582,5]
[341420249,1730871040817,-590.32058058,0.00031773,2]
[341420250,1730871040826,-481.59,0.000318,14]
[341420251,1730871040835,-612908.39007001,0.000318,2]
[341420275,1730871043647,-6183.58,0.00031571,10]
[341420276,1730871043657,-1307.06027748,0.00031773,2]
[341420277,1730871043666,-1245.05850999,0.000318,2]
[341420278,1730871043675,-79.06943224,0.00031873,5]
[341420299,1730871047075,-421.85468689,0.00031873,5]
[341420301,1730871047084,-500.0,0.00031873,5]
[341420303,1730871047094,-500.0,0.00031873,5]
[341420305,1730871047103,-500.0,0.00031873,5]
[341420307,1730871047112,-500.0,0.00031873,5]
[341420309,1730871047123,-157.73696894,0.00031873,5]
[341420311,1730871047132,-500.0,0.00031873,5]
[341420313,1730871047141,-500.94750852,0.00031873,5]
[341420316,1730871047151,-500.0,0.00031873,5]
[341420317,1730871047162,-500.0,0.00031873,5]
[341420320,1730871047171,-193.34650178,0.00031873,5]
[341420321,1730871047180,-500.0,0.00031873,5]
[341420323,1730871047190,-1344.92,0.000319,30]
[341420326,1730871047204,-1327.21,0.000319,30]
[341420328,1730871047213,-303.26,0.000319,14]
[341420329,1730871047222,-1902.84,0.000319,14]
[341420332,1730871047232,-3000.0,0.000319,9]
[341420334,1730871047242,-3042.1473306,0.000319,2]
[341420336,1730871047255,-25699.99999998,0.000319,2]
[341420339,1730871047271,-49096.87818456,0.000319,2]
[341420351,1730871113373,165.297658,0.00013973,2]
[341420354,1730871268307,1169.27083333,0.00020816,2]
[341420360,1730871880335,1169.27083333,0.00020816,2]
[341420377,1730872128856,165.297658,0.00013973,2]
[341420573,1730872236457,-161.4574527,0.00021478,2]
[341420574,1730872236468,-166.6666675,0.00024109,2]
[341420575,1730872236478,-300.0,0.00024813,2]
[341420576,1730872236488,-500.0,0.00024813,2]
[341420577,1730872236497,-156.15131831,0.00024813,2]
[341420578,1730872236507,-262.85765783,0.00024813,2]
[341420579,1730872236517,-1169.27083333,0.00024813,2]
[341420580,1730872236526,-1007.36607033,0.00024814,2]
[341420645,1730872239080,-1553.99680517,0.00024814,2]
[341420693,1730872240526,-525.1555807,0.00024814,2]
[341420701,1730872240629,-21813.4815438,0.00024814,2]
[341420702,1730872240642,-500.0,0.000249,2]
[341420703,1730872240651,-59.9184562,0.000249,2]
[341420735,1730872243449,2609.0,0.00020816,2]
[341421093,1730872251773,200.0,0.00020816,2]
[341421102,1730872491761,1169.27083333,0.00020816,2]
[341421105,1730872658372,173.560455,0.00013973,2]
[341421111,1730873103108,1169.27083333,0.00020816,2]
[341421120,1730873223438,165.297658,0.00013973,2]
[341421771,1730873439847,-1169.27083333,0.0002475,2]
[341421772,1730873439857,-603.349944,0.00024795,2]
[341421773,1730873439866,-185.967687,0.00024851,2]
[341421774,1730873439875,-302.9394212,0.00025,2]
[341421775,1730873439886,-454.22749529,0.00025,2]
[341421776,1730873439895,-220.40333439,0.00025217,2]
[341421777,1730873439904,-205.45178513,0.00025217,2]
[341421778,1730873439918,-365.62231977,0.00025217,2]
[341421779,1730873439927,-292.71928423,0.00025217,2]
[341421780,1730873439936,-1522.25731754,0.00025218,2]
[341421799,1730873442842,-23377.74268246,0.00025218,2]
[341421802,1730873442852,-302.9394212,0.0002525,2]
[341421804,1730873442862,-302.9394212,0.000255,2]
[341421805,1730873442872,-302.9394212,0.0002575,2]
[341421806,1730873442881,-409.67734458,0.00026,2]
[341421807,1730873442891,-4479.34448522,0.000268,2]
[341421808,1730873442900,-463.07106435,0.00027175,2]
[341421809,1730873442910,-152.914,0.000273,2]
[341421810,1730873442923,-230.85784993,0.00027396,2]
[341421811,1730873442932,-208.00328375,0.00027396,2]
[341421812,1730873442942,-431.39696568,0.00027396,2]
[341421813,1730873442951,-166.99628243,0.00027396,2]
[341421814,1730873442962,-174.82417902,0.00027396,2]
[341421815,1730873442972,-601.27648036,0.00027396,2]
[341421816,1730873442981,-771.26209795,0.00027397,2]
[341421817,1730873442991,-500.0,0.00027397,2]
[341421818,1730873443002,-500.0,0.00027397,2]
[341421819,1730873443012,-500.0,0.00027397,2]
[341421820,1730873443021,-500.0,0.00027397,2]
[341421821,1730873443030,-500.0,0.00027397,2]
[341421822,1730873443039,-500.0,0.00027397,2]
[341421823,1730873443049,-500.0,0.00027397,2]
[341421824,1730873443059,-500.0,0.00027397,2]
[341421825,1730873443069,-500.0,0.00027397,2]
[341421827,1730873443078,-500.0,0.00027397,2]
[341421829,1730873443090,-500.0,0.00027397,2]
[341421831,1730873443099,-500.0,0.00027397,2]
[341421833,1730873443111,-500.0,0.00027397,2]
[341421835,1730873443120,-500.0,0.00027397,2]
[341421837,1730873443130,-456.02746832,0.00027397,2]
[341421839,1730873443139,-500.0,0.00027397,2]
[341421841,1730873443148,-550.0,0.00027397,2]
[341421843,1730873443158,-587.52220601,0.00027397,2]
[341421845,1730873443167,-587.52220601,0.00027397,2]
[341421847,1730873443178,-587.52220601,0.00027397,2]
[341421849,1730873443187,-587.52220601,0.00027397,2]
[341421851,1730873443196,-587.52220601,0.00027397,2]
[341421853,1730873443205,-587.52220601,0.00027397,2]
[341421855,1730873443215,-587.52220601,0.00027397,2]
[341421857,1730873443225,-587.52220601,0.00027397,2]
[341421859,1730873443234,-587.52220601,0.00027397,2]
[341421861,1730873443243,-587.52220601,0.00027397,2]
[341421863,1730873443253,-587.52220601,0.00027397,2]
[341421865,1730873443262,-587.52220601,0.00027397,2]
[341421867,1730873443271,-587.52220601,0.00027397,2]
[341421869,1730873443280,-587.52220601,0.00027397,2]
[341421871,1730873443289,-587.52220601,0.00027397,2]
[341421873,1730873443299,-587.52220601,0.00027397,2]
[341421875,1730873443308,-587.52220601,0.00027397,2]
[341421877,1730873443318,-587.52220601,0.00027397,2]
[341421879,1730873443327,-587.52220601,0.00027397,2]
[341421881,1730873443340,-587.52220601,0.00027397,2]
[341421883,1730873443354,-587.52220601,0.00027397,2]
[341421885,1730873443364,-587.52220601,0.00027397,2]
[341421887,1730873443373,-587.52220601,0.00027397,2]
[341421889,1730873443383,-587.52220601,0.00027397,2]
[341421891,1730873443393,-587.52220601,0.00027397,2]
[341421893,1730873443402,-587.52220601,0.00027397,2]
[341421896,1730873443412,-587.52220601,0.00027397,2]
[341421898,1730873443422,-587.52220601,0.00027397,2]
[341421900,1730873443431,-587.52220601,0.00027397,2]
[341421902,1730873443440,-587.52220601,0.00027397,2]
[341421904,1730873443450,-587.52220601,0.00027397,2]
[341421906,1730873443459,-587.52220601,0.00027397,2]
[341421908,1730873443468,-587.52220601,0.00027397,2]
[341421910,1730873443478,-587.52220601,0.00027397,2]
[341421912,1730873443487,-587.52220601,0.00027397,2]
[341421914,1730873443496,-587.52220601,0.00027397,2]
[341421916,1730873443505,-587.52220601,0.00027397,2]
[341421918,1730873443515,-587.52220601,0.00027397,2]
[341421920,1730873443524,-587.52220601,0.00027397,2]
[341421922,1730873443533,-587.52220601,0.00027397,2]
[341421924,1730873443543,-587.52220601,0.00027397,2]
[341421926,1730873443552,-587.52220601,0.00027397,2]
[341421928,1730873443561,-587.52220601,0.00027397,2]
[341421930,1730873443572,-587.52220601,0.00027397,2]
[341421931,1730873443584,-587.52220601,0.00027397,2]
[341421946,1730873443707,-587.52220601,0.00027397,2]
[341421948,1730873443717,-587.52220601,0.00027397,2]
[341421950,1730873443726,-587.52220601,0.00027397,2]
[341421952,1730873443737,-587.52220601,0.00027397,2]
[341421954,1730873443746,-587.52220601,0.00027397,2]
[341421956,1730873443755,-587.52220601,0.00027397,2]
[341421958,1730873443764,-587.52220601,0.00027397,2]
[341421960,1730873443774,-152.898,0.0002814,9]
[341421962,1730873443784,-172.319,0.00028414,19]
[341421964,1730873443793,-152.893,0.0002898,14]
[341421966,1730873443802,-152.915,0.0002982,30]
[341421968,1730873443811,-151.0,0.0003,120]
[341421970,1730873443820,-151.0,0.0003,120]
[341421972,1730873443832,-184.989,0.0003,2]
[341421974,1730873443842,-184.989,0.0003,2]
[341421976,1730873443851,-228.0,0.0003,2]
[341421978,1730873443860,-185.90882339,0.00030137,2]
[341421980,1730873443870,-499.25608119,0.00030137,2]
[341421982,1730873443879,-500.0,0.00030137,2]
[341421984,1730873443889,-179.28830969,0.00030137,2]
[341421986,1730873443899,-152.905,0.0003066,5]
[341421988,1730873443908,-488.6446353,0.00030895,2]
[341421990,1730873443919,-200.671065,0.000309,2]
[341421992,1730873443929,-339.94959586,0.00030959,5]
[341421994,1730873443938,-629.1911532,0.00030959,5]
[341421996,1730873443947,-3697.74,0.0003096,10]
[341421998,1730873443957,-156.647318,0.00031,32]
[341422000,1730873443967,-18806.69,0.00031,3]
[341422001,1730873443978,-150.112233,0.00031,45]
[341422003,1730873443987,-150.112233,0.00031,55]
[341422005,1730873443998,-153.603,0.000315,10]
[341422007,1730873444007,-304.03765007,0.00031581,2]
[341422009,1730873444016,-5773.41,0.0003169,10]
[341422011,1730873444027,-5634.33,0.0003169,10]
[341422013,1730873444036,-600.0,0.00031699,2]
[341422015,1730873444046,-55555.0,0.000317,3]
[341422017,1730873444056,-1000.0,0.000317,2]
[341422019,1730873444066,-1176.35424975,0.000317,2]
[341422021,1730873444076,-501.26594913,0.00031773,5]
[341422023,1730873444089,-624633.37883764,0.0003178,10]
[341422039,1730873444231,-41803.69472639,0.0003178,10]
[341422041,1730873444243,-14951.55509883,0.0003178,10]
[341422277,1730873446529,-532156.48798308,0.0003178,10]
[341422280,1730873446554,-5661.9263879,0.0003178,10]
[341422283,1730873446565,-7451.01459717,0.0003178,10]
[341422286,1730873446592,-6934.33641261,0.0003178,10]
[341422289,1730873446606,-74950.0,0.0003178,10]
[341422388,1730873708913,169.499254,0.00013973,2]
[341422389,1730873713859,195.41425,0.00018699,2]
[341422390,1730873715242,1169.27083333,0.00020816,2]
[341422395,1730874113009,989.70931006,0.00034624,120]
[341422397,1730874238459,165.297658,0.00013973,2]
[341422401,1730874327430,1169.27083333,0.00020816,2]
[341422412,1730874487688,210.5,0.0002081,2]
[341422423,1730874524680,150.34695633,0.0002,7]
[341422546,1730874632428,-188.2212161,0.00021476,2]
[341422548,1730874632438,-1396.22083703,0.00023,2]
[341422550,1730874632449,-166.666666,0.00023612,2]
[341422552,1730874632459,-185.967687,0.0002421,2]
[341422554,1730874632469,-300.0,0.00024399,2]
[341422555,1730874632478,-300.0,0.00024399,2]
[341422556,1730874632488,-8438.84664644,0.000244,120]
[341422557,1730874632497,-4708.43192098,0.0002455,2]
[341422558,1730874632507,-1232.16147442,0.00024577,2]
[341422559,1730874632516,-24900.0,0.00024577,2]
[341422560,1730874632525,-156.55589766,0.0002465,2]
[341422561,1730874632535,-1169.27083333,0.0002465,2]
[341422562,1730874632545,-277.450267,0.00024683,2]
[341422563,1730874632555,-166.666666,0.00024685,2]
[341422565,1730874632565,-152.0,0.00024913,2]
[341422567,1730874632577,-277.450267,0.00025368,2]
[341422569,1730874632587,-166.666666,0.00025758,2]
[341422571,1730874632597,-277.450267,0.00026053,2]
[341422573,1730874632606,-554.34651017,0.00026315,2]
[341422574,1730874632615,-420.0,0.00026449,2]
[341422576,1730874632625,-4708.43192093,0.00026743,2]
[341422579,1730874632634,-166.666666,0.00026831,2]
[341422581,1730874632648,-420.0,0.00026839,2]
[341422583,1730874632657,-500.0,0.0002695,2]
[341422585,1730874632667,-500.0,0.0002695,2]
[341422587,1730874632676,-500.0,0.0002695,2]
[341422589,1730874632685,-500.0,0.0002695,2]
[341422591,1730874632695,-500.0,0.0002695,2]
[341422593,1730874632704,-151.0,0.00027,2]
[341422595,1730874632713,-500.0,0.00027063,2]
[341422597,1730874632723,-160.36341815,0.00027063,2]
[341422599,1730874632732,-1611.4060156,0.0002737,4]
[341422601,1730874632741,-503.59790376,0.00027396,2]
[341422603,1730874632751,-566.49583488,0.00027396,2]
[341422605,1730874632760,-500.0,0.00027397,2]
[341422607,1730874632770,-500.0,0.00027397,2]
[341422609,1730874632779,-500.0,0.00027397,2]
[341422611,1730874632788,-500.0,0.00027397,2]
[341422613,1730874632798,-404.21922782,0.00027397,2]
[341422615,1730874632808,-500.0,0.00027397,2]
[341422617,1730874632818,-500.0,0.00027397,2]
[341422619,1730874632831,-500.0,0.00027397,2]
[341422621,1730874632840,-500.0,0.00027397,2]
[341422623,1730874632849,-500.0,0.00027397,2]
[341422625,1730874632859,-500.0,0.00027397,2]
[341422627,1730874632868,-332.95345947,0.00027397,2]
[341422629,1730874632878,-500.0,0.00027397,2]
[341422631,1730874632888,-500.0,0.00027397,2]
[341422633,1730874632897,-500.0,0.00027397,2]
[341422635,1730874632907,-500.0,0.00027397,2]
[341422637,1730874632916,-500.0,0.00027397,2]
[341422639,1730874632925,-500.0,0.00027397,2]
[341422641,1730874632935,-500.0,0.00027397,2]
[341422643,1730874632944,-500.0,0.00027397,2]
[341422645,1730874632953,-500.0,0.00027397,2]
[341422647,1730874632962,-500.0,0.00027397,2]
[341422649,1730874632972,-500.0,0.00027397,2]
[341422651,1730874632981,-500.0,0.00027397,2]
[341422653,1730874632990,-500.0,0.00027397,2]
[341422655,1730874633001,-500.0,0.00027397,2]
[341422657,1730874633011,-500.0,0.00027397,2]
[341422659,1730874633021,-500.0,0.00027397,2]
[341422662,1730874633031,-500.0,0.00027397,2]
[341422664,1730874633041,-500.0,0.00027397,2]
[341422665,1730874633051,-500.0,0.00027397,2]
[341422667,1730874633060,-500.0,0.00027397,2]
[341422670,1730874633070,-500.0,0.00027397,2]
[341422672,1730874633084,-418.83226698,0.00027397,2]
[341422674,1730874633094,-500.0,0.00027397,2]
[341422676,1730874633103,-500.0,0.00027397,2]
[341422678,1730874633112,-500.0,0.00027397,2]
[341422680,1730874633121,-500.0,0.00027397,2]
[341422682,1730874633131,-500.0,0.00027397,2]
[341422684,1730874633141,-500.0,0.00027397,2]
[341422685,1730874633150,-500.0,0.00027397,2]
[341422687,1730874633160,-500.0,0.00027397,2]
[341422689,1730874633170,-500.0,0.00027397,2]
[341422691,1730874633179,-500.0,0.00027397,2]
[341422693,1730874633189,-500.0,0.00027397,2]
[341422695,1730874633198,-500.0,0.00027397,2]
[341422697,1730874633208,-500.0,0.00027397,2]
[341422699,1730874633218,-500.0,0.00027397,2]
[341422701,1730874633228,-500.0,0.00027397,2]
[341422703,1730874633238,-500.0,0.00027397,2]
[341422705,1730874633249,-500.0,0.00027397,2]
[341422707,1730874633259,-500.0,0.00027397,2]
[341422709,1730874633268,-500.0,0.00027397,2]
[341422711,1730874633279,-500.0,0.00027397,2]
[341422713,1730874633290,-500.0,0.00027397,2]
[341422715,1730874633300,-500.0,0.00027397,2]
[341422717,1730874633311,-500.0,0.00027397,2]
[341422719,1730874633321,-500.0,0.00027397,2]
[341422722,1730874633336,-500.0,0.00027397,2]
[341422724,1730874633346,-500.0,0.00027397,2]
[341422726,1730874633356,-500.0,0.00027397,2]
[341422728,1730874633368,-500.0,0.00027397,2]
[341422729,1730874633377,-500.0,0.00027397,2]
[341422731,1730874633388,-500.0,0.00027397,2]
[341422733,1730874633397,-438.10923364,0.00027397,2]
[341422736,1730874633408,-500.0,0.00027397,2]
[341422737,1730874633418,-500.0,0.00027397,2]
[341422739,1730874633427,-500.0,0.00027397,2]
[341422741,1730874633437,-500.0,0.00027397,2]
[341422743,1730874633447,-500.0,0.00027397,2]
[341422745,1730874633457,-500.0,0.00027397,2]
[341422747,1730874633466,-500.0,0.00027397,2]
[341422749,1730874633488,-500.0,0.000274,5]
[341422751,1730874633497,-153.67490538,0.000274,5]
[341422753,1730874633507,-500.0,0.000274,5]
[341422767,1730874633631,-17924.11,0.0002749,10]
[341422769,1730874633641,-7186.79760089,0.000275,2]
[341422785,1730874633794,-14470.97642269,0.000275,2]
[341422786,1730874633806,-5152.42857269,0.000275,2]
[341422843,1730874638189,-500.0,0.00027063,2]
[341422845,1730874638199,-2876.94281471,0.000275,2]
[341422847,1730874638209,-469.46732551,0.0002763,2]
[341422849,1730874638218,-501.78119918,0.00027675,5]
[341422851,1730874638227,-500.0,0.0002785,5]
[341422853,1730874638237,-500.0,0.00027925,5]
[341422854,1730874638246,-500.0,0.00027925,5]
[341422856,1730874638256,-500.0,0.00027925,5]
[341422859,1730874638265,-160.3730595,0.00027925,5]
[341422861,1730874638275,-160.36480995,0.00027925,5]
[341422862,1730874638284,-5474.67922602,0.0002799,2]
[341422864,1730874638296,-366.40794129,0.0002826,5]
[341422866,1730874638306,-503.5710637,0.0002826,5]
[341422868,1730874638315,-504.21690364,0.0002832,5]
[341422870,1730874638329,-510.35540102,0.0002832,5]
[341422872,1730874638338,-1000.0,0.0002832,5]
[341422874,1730874638347,-507.15723942,0.0002832,5]
[341422876,1730874638357,-1000.0,0.0002832,2]
[341422878,1730874638368,-211.5,0.00028384,19]
[341422880,1730874638377,-1000.0,0.00028432,5]
[341422882,1730874638387,-500.0,0.00028432,5]
[341422884,1730874638396,-587.0,0.0002867,2]
[341422886,1730874638406,-3000.0,0.000287,2]
[341422888,1730874638415,-3000.0,0.0002871,2]
[341422890,1730874638424,-3000.0,0.0002872,2]
[341422892,1730874638433,-613.44,0.0002872,3]
[341422894,1730874638443,-3000.0,0.0002873,2]
[341422896,1730874638452,-3000.0,0.0002874,2]
[341422898,1730874638462,-3000.0,0.0002875,2]
[341422900,1730874638471,-3000.0,0.0002876,2]
[341422902,1730874638480,-2286.68156787,0.0002876,2]
[341422904,1730874638490,-416.25194691,0.0002877,5]
[341422906,1730874638499,-1000.0,0.0002877,5]
[341422908,1730874638509,-3000.0,0.0002877,2]
[341422910,1730874638518,-3000.0,0.0002878,2]
[341422912,1730874638527,-3000.0,0.0002879,2]
[341422914,1730874638537,-3000.0,0.000288,2]
[341422916,1730874638547,-3000.0,0.0002881,2]
[341422918,1730874638556,-3000.0,0.0002882,2]
[341422920,1730874638566,-3000.0,0.0002883,2]
[341422922,1730874638577,-3000.0,0.0002884,2]
[341422924,1730874638586,-3000.0,0.0002885,2]
[341422926,1730874638596,-706.20514449,0.00028852,2]
[341422928,1730874638606,-3000.0,0.0002886,2]
[341422930,1730874638615,-3000.0,0.0002887,2]
[341422932,1730874638625,-3000.0,0.0002888,2]
[341422934,1730874638634,-3000.0,0.0002889,2]
[341422936,1730874638643,-3000.0,0.000289,2]
[341422938,1730874638652,-5990.965586,0.0002891,2]
[341422940,1730874638661,-4708.43192093,0.00028936,2]
[341422942,1730874638670,-500.0,0.00028973,5]
[341422944,1730874638679,-500.0,0.00028973,5]
[341422946,1730874638688,-859.5626708,0.00029,2]
[341422948,1730874638697,-82775.16726991,0.00029,30]
[341422950,1730874638706,-465.22336628,0.00029012,2]
[341422952,1730874638716,-1000.0,0.0002922,5]
[341422954,1730874638725,-195.41425,0.0002923,2]
[341422956,1730874638734,-1000.0,0.00029295,5]
[341422958,1730874638743,-940.89823273,0.00029295,5]
[341422960,1730874638754,-260.52414203,0.00029295,5]
[341422962,1730874638764,-2286.68156787,0.0002949,2]
[341422964,1730874638773,-587.0,0.00029523,2]
[341422966,1730874638782,-197.794339,0.000298,15]
[341422968,1730874638791,-248.93589586,0.00029973,5]
[341422970,1730874638801,-500.0,0.00029973,5]
[341422972,1730874638810,-151.0,0.0003,120]
[341422974,1730874638819,-151.0,0.0003,120]
[341422976,1730874638831,-317.7435,0.0003,2]
[341422978,1730874638842,-317.7435,0.0003,2]
[341422980,1730874638852,-182.287,0.0003,2]
[341422982,1730874638861,-150.112233,0.0003,16]
[341422984,1730874638870,-587.0,0.0003,2]
[341422986,1730874638879,-3997.0,0.0003,14]
[341422988,1730874638889,-391.33592305,0.0003,10]
[341422990,1730874638898,-1402.95254067,0.0003,10]
[341422992,1730874638907,-167.21522792,0.0003,2]
[341422994,1730874638916,-133222.27160658,0.0003,2]
[341422996,1730874638925,-6247.52685697,0.0003,2]
[341422998,1730874638935,-163.0,0.0003,2]
[341423000,1730874638945,-4749.0,0.0003,2]
[341423002,1730874638954,-212.56512282,0.00030137,2]
[341423004,1730874638964,-500.0,0.00030137,2]
[341423006,1730874638973,-492.1717916,0.00030137,2]
[341423008,1730874638983,-2286.68156787,0.0003022,2]
[341423010,1730874638993,-150.112233,0.000303,20]
[341423012,1730874639002,-500.0,0.00030342,5]
[341423014,1730874639012,-1000.0,0.00030342,5]
[341423016,1730874639021,-587.0,0.00030411,2]
[341423018,1730874639030,-163.0,0.00030411,2]
[341423020,1730874639040,-465.01116831,0.00030462,2]
[341423022,1730874639050,-349.0,0.00030565,14]
[341423024,1730874639060,-150.112233,0.000306,17]
[341423026,1730874639070,-187.6059528,0.0003065,2]
[341423028,1730874639081,-557.17522074,0.00030761,5]
[341423030,1730874639091,-1265.93427113,0.00030825,5]
[341423032,1730874639100,-1500.0,0.00030825,2]
[341423034,1730874639109,-150.112233,0.000309,14]
[341423036,1730874639119,-200.0,0.000309,120]
[341423038,1730874639128,-1500.0,0.00030937,5]
[341423040,1730874639137,-2286.68156787,0.0003095,2]
[341423042,1730874639146,-216.41012436,0.00031,2]
[341423044,1730874639156,-500.0,0.0003101,30]
[341423046,1730874639166,-500.0,0.0003101,30]
[341423048,1730874639175,-500.0,0.0003101,30]
[341423051,1730874639184,-701.11087916,0.0003101,30]
[341423052,1730874639194,-500.0,0.0003101,30]
[341423054,1730874639203,-549.73702654,0.0003101,30]
[341423056,1730874639212,-823.0,0.00031079,2]
[341423058,1730874639221,-4708.43192093,0.00031129,2]
[341423060,1730874639231,-1000.0,0.00031141,2]
[341423062,1730874639240,-5918.59443738,0.00031148,2]
[341423064,1730874639250,-150.112233,0.000312,10]
[341423066,1730874639259,-500.0,0.00031204,5]
[341423068,1730874639268,-500.0,0.00031204,5]
[341423070,1730874639281,-13576.59329672,0.00031241,3]